bitfinex/quotes_SOLUSD_20240607
["timestamp","ask_amount","ask_price","bid_price","bid_amount"]
[1717796146456,7.27,162.63,162.62,2.2752]
[1717796157882,7.27,162.63,162.6,2.2754]
[1717796158087,7.27,162.61,162.6,2.2754]
[1717796158381,29.08,162.64,162.59,4.5512]
[1717796158699,7.27,162.6,162.59,13.3782]
[1717796158890,29.08,162.64,162.6,4.551]
[1717796159096,29.08,162.64,162.62,2.2751]
[1717796159294,7.27,162.63,162.62,2.2751]
[1717796161594,29.08,162.64,162.62,2.2751]
[1717796161918,29.08,162.64,162.63,2.275]
[1717796162219,36.35,162.64,162.58,21.0552018]
[1717796162519,36.35,162.64,162.58,16.7796018]
[1717796162520,7.27,162.59,162.58,16.7796018]
[1717796163016,45.0,162.63,162.61,2.2753]
[1717796163226,7.27,162.62,162.61,2.2753]
[1717796163823,7.27,162.62,162.6,2.2754]
[1717796164093,45.0,162.63,162.61,2.2753]
[1717796164331,7.27,162.62,162.61,2.2753]
[1717796168317,2.2743,162.69,162.61,11.3765]
[1717796168625,7.27,162.63,162.62,29.8011]
[1717796169599,2.2741,162.7,162.63,4.5501]
[1717796169919,7.27,162.64,162.63,13.3811]
[1717796170432,2.2741,162.7,162.65,2.2747]
[1717796170730,7.27,162.66,162.65,2.2747]
[1717796171516,21.22738345,162.66,162.65,2.2747]
[1717796171699,7.27,162.66,162.65,2.2747]
[1717796172530,2.2742,162.69,162.65,2.2747]
[1717796172717,7.27,162.66,162.65,8.3721]
[1717796177409,7.27,162.66,162.65,90.3721]
[1717796177813,7.27,162.66,162.65,2.2747]
[1717796178317,2.2741,162.7,162.66,2.2746]
[1717796178502,7.27,162.67,162.66,2.2746]
[1717796179524,7.27,162.67,162.63,4.5501]
[1717796179525,47.274,162.71,162.67,2.2745]
[1717796179838,7.27,162.68,162.66,2.2746]
[1717796180003,7.27,162.67,162.66,2.2746]
[1717796181828,47.274,162.71,162.67,2.2745]
[1717796182019,7.27,162.68,162.67,2.2745]
[1717796182220,14.65564038,162.68,162.67,2.2745]
[1717796182609,14.65564038,162.68,162.64,4.5498]
[1717796182920,7.27,162.68,162.66,2.2746]
[1717796183131,2.2741,162.7,162.66,2.2746]
[1717796183433,7.27,162.67,162.66,2.2746]
[1717796183624,14.65564476,162.67,162.66,2.2746]
[1717796185618,7.38564476,162.67,162.66,2.2746]
[1717796185819,14.65564476,162.67,162.66,2.2746]
[1717796186018,7.27,162.67,162.66,2.2746]
[1717796186747,14.65619632,162.67,162.66,2.2746]
[1717796187625,7.38619632,162.67,162.66,2.2746]
[1717796187825,7.27,162.67,162.66,2.2746]
[1717796188250,14.65609595,162.67,162.66,2.2746]
[1717796189341,7.38609595,162.67,162.66,2.2746]
[1717796189544,45.0,162.71,162.69,2.2742]
[1717796189717,29.08,162.72,162.69,2.2742]
[1717796189718,14.65600617,162.7,162.69,2.2742]
[1717796190942,7.38600617,162.7,162.69,2.2742]
[1717796191128,7.27,162.7,162.69,2.2742]
[1717796191444,14.65600617,162.7,162.69,2.2742]
[1717796192255,7.38600617,162.7,162.69,2.2742]
[1717796192430,7.38600617,162.71,162.67,6.3966]
[1717796192623,389.7735,162.74,162.69,2.2741]
[1717796192823,7.27,162.7,162.69,2.2741]
[1717796193233,14.65488596,162.7,162.69,2.2741]
[1717796193740,7.27,162.7,162.69,2.2741]
[1717796194749,45.0,162.73,162.7,2.274]
[1717796194948,7.27,162.71,162.68,10.9453]
[1717796195125,387.5,162.75,162.71,2.2739]
[1717796195324,7.27,162.72,162.71,2.2739]
[1717796195654,2.2733,162.76,162.71,2.2739]
[1717796195826,7.27,162.72,162.71,2.2739]
[1717796200165,2.2733,162.76,162.72,2.2738]
[1717796200459,7.27,162.73,162.67,4.549]
[1717796200758,2.2734,162.75,162.68,4.5487]
[1717796200957,7.27,162.7,162.69,6.3966]
[1717796201363,45.0,162.75,162.71,2.2739]
[1717796201537,7.27,162.72,162.71,2.2739]
[1717796212452,387.5,162.74,162.72,2.2738]
[1717796212645,7.27,162.73,162.72,2.2738]
[1717796216567,7.27,162.73,162.71,2.2739]
[1717796216769,7.27,162.72,162.71,2.2739]
[1717796227375,14.65402952,162.72,162.71,2.2739]
[1717796228069,7.27,162.72,162.71,2.2739]
[1717796228287,14.65398259,162.72,162.71,2.2739]
[1717796228688,7.27,162.72,162.71,2.2739]
[1717796230290,47.2733,162.76,162.72,2.2737]
[1717796230596,7.27,162.73,162.72,2.2737]
[1717796230970,14.65393108,162.73,162.72,2.2737]
[1717796231170,14.65393108,162.73,162.71,2.2739]
[1717796231404,7.27,162.72,162.71,2.2739]
[1717796233375,14.65398259,162.72,162.71,2.2739]
[1717796237196,7.27,162.72,162.71,2.2739]
[1717796237401,14.65431082,162.72,162.71,2.2739]
[1717796237574,2.2733,162.76,162.72,2.2738]
[1717796237774,7.27,162.73,162.72,2.2738]
[1717796237995,14.65428996,162.73,162.72,2.2738]
[1717796238181,14.65428996,162.73,162.71,2.2739]
[1717796238497,14.65428996,162.72,162.71,2.2739]
[1717796239101,7.27,162.72,162.71,2.2739]
[1717796239600,14.65395209,162.72,162.71,2.2739]
[1717796242004,7.38395209,162.72,162.71,2.2739]
[1717796242199,7.27,162.72,162.71,2.2739]
[1717796242402,14.65395209,162.72,162.71,2.2739]
[1717796245213,7.38395209,162.72,162.71,2.2739]
[1717796245398,7.27,162.74,162.73,2.2737]
[1717796245905,14.65395209,162.74,162.73,2.2737]
[1717796246814,7.38395209,162.74,162.73,2.2737]
[1717796247008,7.27,162.74,162.73,2.2737]
[1717796247212,14.65395209,162.74,162.73,2.2737]
[1717796247516,14.65395209,162.74,162.72,2.2737]
[1717796247714,14.65395209,162.73,162.72,2.2737]
[1717796248016,7.27,162.73,162.72,2.2737]
[1717796252208,7.27,162.73,162.71,2.2739]
[1717796254810,7.27,162.73,162.72,2.2738]
[1717796256243,7.27,162.73,162.7,6.1535]
[1717796256538,2.2734,162.75,162.7,2.274]
[1717796256704,7.27,162.72,162.71,2.2739]
[1717796257421,7.27,162.73,162.71,2.2739]
[1717796259530,54.5439,162.72,162.64,11.3743]
[1717796259833,52.27,162.72,162.68,2.2742]
[1717796260027,7.27,162.69,162.68,2.2742]
[1717796260412,45.0,162.72,162.69,2.2742]
[1717796260720,7.27,162.7,162.69,2.2742]
[1717796261531,45.0,162.72,162.66,4.5492]
[1717796261711,7.27,162.7,162.69,2.2741]
[1717796263134,7.27,162.7,162.67,2.2744]
[1717796263341,7.27,162.72,162.68,2.2742]
[1717796263811,29.08,162.72,162.68,2.2742]
[1717796265224,29.08,162.72,162.66,4.5492]
[1717796265536,29.08,162.72,162.68,2.2742]
[1717796265717,45.0,162.71,162.68,2.2742]
[1717796266621,45.0,162.71,162.68,2.2743]
[1717796267912,45.0,162.71,162.65,11.3738]
[1717796267913,47.274,162.71,162.65,4.5494]
[1717796268112,47.274,162.71,162.67,2.2744]
[1717796268420,45.0,162.71,162.67,2.2744]
[1717796269215,45.0,162.71,162.68,2.2743]
[1717796269607,47.274,162.71,162.67,2.2744]
[1717796271129,45.0,162.71,162.67,2.2744]
[1717796271433,45.0,162.71,162.68,2.2743]
[1717796272623,45.0,162.71,162.65,4.5494]
[1717796273435,47.2739,162.71,162.67,2.2744]
[1717796273635,45.0,162.71,162.68,2.2744]
[1717796274922,45.0,162.71,162.67,2.2744]
[1717796275324,45.0,162.71,162.68,2.2743]
[1717796275850,2.2743,162.69,162.64,84.2748]
[1717796276147,7.27,162.67,162.66,2.2746]
[1717796279434,7.27,162.67,162.63,13.0707]
[1717796279642,7.27,162.66,162.63,17.6207]
[1717796281154,7.27,162.66,162.65,2.2748]
[1717796282761,2.2742,162.7,162.66,2.2746]
[1717796282930,7.27,162.67,162.66,2.2746]
[1717796288452,7.27,162.67,162.65,2.2747]
[1717796288657,7.27,162.66,162.65,2.2747]
[1717796290757,7.27,162.66,162.63,2.2749]
[1717796290969,7.27,162.64,162.63,2.2749]
[1717796291457,7.27,162.64,162.62,2.2751]
[1717796291762,2.2746,162.66,162.63,2.275]
[1717796291936,7.27,162.64,162.63,2.275]
[1717796292638,2.2746,162.67,162.63,2.275]
[1717796292837,7.27,162.64,162.63,2.275]
[1717796299538,7.27,162.64,162.62,2.2751]
[1717796299742,7.27,162.63,162.62,2.2751]
[1717796302055,7.27,162.63,162.58,0.8493018]
[1717796302056,1.7032,162.61,162.58,0.8493018]
[1717796302256,9.5456,162.59,162.58,0.8493018]
[1717796302649,2.2756,162.59,162.58,0.8493018]
[1717796302851,9.5456,162.59,162.58,0.8493018]
[1717796303769,54.5456,162.59,162.58,0.8493018]
[1717796310752,47.2756,162.59,162.58,0.8493018]
[1717796311057,54.5456,162.59,162.58,0.8493018]
[1717796313669,47.2756,162.59,162.58,0.8493018]
[1717796313883,54.5456,162.59,162.58,0.8493018]
[1717796314366,47.2756,162.59,162.58,0.8493018]
[1717796314566,54.5456,162.59,162.58,0.8493018]
[1717796318176,45.0,162.59,162.58,0.8493018]
[1717796318381,4.5518,162.58,162.46,15.1345]
[1717796318577,4.5518,162.58,162.48,2.2771]
[1717796318578,7.27,162.51,162.48,2.2771]
[1717796318882,7.27,162.51,162.49,8.6761]
[1717796319298,7.27,162.51,162.5,2.2769]
[1717796319593,7.27,162.52,162.49,8.6761]
[1717796322274,7.27,162.52,162.5,2.2768]
[1717796323691,2.2764,162.54,162.5,2.2768]
[1717796324493,45.0,162.55,162.46,103.5336]
[1717796324795,2.2765,162.53,162.49,6.3991]
[1717796325279,2.2765,162.53,162.49,8.6761]
[1717796326183,2.2764,162.54,162.5,2.2769]
[1717796326417,7.27,162.52,162.5,2.2769]
[1717796326579,7.27,162.52,162.49,6.3991]
[1717796326580,7.27,162.52,162.49,8.676]
[1717796327391,2.2765,162.53,162.49,8.676]
[1717796327573,7.27,162.52,162.49,8.676]
[1717796328279,2.2765,162.53,162.49,8.676]
[1717796328482,7.27,162.51,162.49,8.676]
[1717796330088,7.27,162.51,162.49,2.2769]
[1717796333090,2.2765,162.53,162.49,2.2769]
[1717796333518,7.45,162.51,162.49,2.2769]
[1717796333819,7.45,162.51,162.49,84.2769]
[1717796334502,7.45,162.51,162.48,2.2771]
[1717796334714,7.45,162.5,162.48,2.2771]
[1717796335015,2.2766,162.52,162.48,2.2771]
[1717796336693,47.2765,162.53,162.48,2.2771]
[1717796336893,7.45,162.5,162.48,2.2771]
[1717796337208,47.2765,162.53,162.48,2.2771]
[1717796337404,2.2765,162.53,162.48,2.2771]
[1717796339229,7.45,162.5,162.48,2.2771]
[1717796343296,7.45,162.5,162.49,2.277]
[1717796344522,7.45,162.5,162.48,2.2771]
[1717796344708,7.45,162.49,162.48,2.2771]
[1717796347705,2.2766,162.52,162.48,2.2771]
[1717796348019,7.45,162.49,162.48,2.2771]
[1717796351516,18.46,162.55,162.45,13.71]
[1717796351716,18.46,162.55,162.48,4.5541]
[1717796351917,2.2764,162.54,162.49,2.2769]
[1717796352110,7.45,162.51,162.49,2.2769]
[1717796352314,7.45,162.51,162.49,84.2769]
[1717796352828,2.2763,162.55,162.5,2.2768]
[1717796353027,7.45,162.51,162.5,2.2768]
[1717796353216,2.2763,162.54,162.49,84.277]
[1717796353410,7.45,162.51,162.49,84.277]
[1717796358716,2.2763,162.54,162.49,84.277]
[1717796358910,7.45,162.51,162.49,84.277]
[1717796359635,7.45,162.51,162.46,10.7028]
[1717796359831,7.45,162.51,162.48,2.2771]
[1717796360938,7.45,162.51,162.49,2.277]
[1717796361239,49.5524,162.55,162.49,2.277]
[1717796361240,45.0,162.55,162.49,2.277]
[1717796361414,7.45,162.51,162.49,2.277]
[1717796362532,7.45,162.51,162.49,84.277]
[1717796365752,45.0,162.55,162.49,88.148]
[1717796366051,7.45,162.53,162.52,2.2766]
[1717796366212,7.45,162.53,162.51,2.2767]
[1717796367534,47.2762,162.55,162.51,2.2767]
[1717796367835,45.0,162.55,162.5,4.5537]
[1717796368143,7.45,162.54,162.51,2.2766]
[1717796368523,47.2762,162.55,162.51,2.2766]
[1717796368726,7.45,162.53,162.51,2.2766]
[1717796369632,7.45,162.53,162.5,2.2768]
[1717796371047,7.45,162.53,162.51,2.2767]
[1717796381551,2.2761,162.56,162.52,2.2766]
[1717796381751,7.45,162.54,162.52,2.2765]
[1717796381953,47.276,162.57,162.53,2.2765]
[1717796382449,2.2757,162.59,162.54,2.2762]
[1717796382653,2.2755,162.6,162.53,4.5528]
[1717796382954,2.2755,162.6,162.56,2.276]
[1717796383142,7.45,162.58,162.56,2.276]
[1717796384042,2.2755,162.6,162.56,2.276]
[1717796384043,2.2754,162.61,162.56,2.276]
[1717796384239,7.45,162.58,162.56,2.276]
[1717796385051,2.2755,162.6,162.56,2.276]
[1717796385235,7.45,162.58,162.56,2.276]
[1717796385432,7.45,162.58,162.55,2.2761]
[1717796385655,7.45,162.57,162.55,2.2761]
[1717796386259,7.45,162.57,162.56,2.276]
[1717796386569,7.45,162.58,162.55,2.2761]
[1717796387148,7.45,162.58,162.56,2.276]
[1717796389018,7.45,162.58,162.55,2.2762]
[1717796389145,7.45,162.57,162.55,2.2762]
[1717796391867,7.45,162.57,162.56,2.276]
[1717796392052,7.45,162.57,162.55,2.2761]
[1717796395244,2.2755,162.6,162.55,2.2761]
[1717796395445,7.45,162.57,162.55,2.2761]
[1717796397461,7.45,162.57,162.56,2.276]
[1717796400285,7.45,162.57,162.55,2.2761]
[1717796400575,45.0,162.6,162.56,2.276]
[1717796400795,7.45,162.58,162.56,2.276]
[1717796400955,54.91462648,162.63,162.57,2.2758]
[1717796400956,2.2753,162.62,162.57,2.2758]
[1717796401158,2.2751,162.63,162.58,2.2757]
[1717796401369,7.45,162.6,162.58,2.2757]
[1717796403176,7.45,162.6,162.57,2.2758]
[1717796404092,7.45,162.6,162.57,84.2758]
[1717796405294,7.45,162.6,162.58,2.2757]
[1717796405971,2.2751,162.63,162.58,2.2757]
[1717796406167,7.45,162.6,162.58,2.2757]
[1717796406576,7.45,162.61,162.58,2.2757]
[1717796406780,2.2752,162.62,162.58,2.2757]
[1717796407083,7.45,162.61,162.57,2.2758]
[1717796407273,7.45,162.61,162.58,2.2757]
[1717796410370,2.2751,162.63,162.58,2.2757]
[1717796410572,7.45,162.61,162.58,2.2757]
[1717796410782,2.2752,162.62,162.58,2.2757]
[1717796410981,7.45,162.61,162.58,2.2757]
[1717796411688,7.45,162.61,162.59,2.2756]
[1717796412004,7.45,162.61,162.58,2.2757]
[1717796412208,2.2751,162.63,162.56,4.5521]
[1717796412385,7.45,162.61,162.58,2.2757]
[1717796413187,2.2751,162.63,162.58,2.2757]
[1717796413505,7.45,162.61,162.58,2.2757]
[1717796415320,7.45,162.61,162.58,84.2757]
[1717796415491,7.45,162.61,162.58,2.2757]
[1717796416094,47.2749,162.64,162.58,6.5857]
[1717796416290,7.45,162.62,162.6,2.2754]
[1717796416697,47.2748,162.65,162.6,8.861]
[1717796416896,7.45,162.62,162.6,8.861]
[1717796417101,2.2749,162.64,162.6,8.861]
[1717796417403,7.45,162.62,162.6,2.2753]
[1717796417791,7.45,162.62,162.59,2.2756]
[1717796418407,7.45,162.62,162.6,2.2754]
[1717796418808,2.2749,162.64,162.6,2.2754]
[1717796419099,7.45,162.62,162.6,2.2754]
[1717796419305,7.45,162.62,162.59,90.8613]
[1717796421487,7.45,162.62,162.59,8.8613]
[1717796421690,7.45,162.62,162.59,6.5857]
[1717796422827,7.45,162.62,162.59,8.8612]
[1717796424494,7.45,162.62,162.59,90.8612]
[1717796427816,7.45,162.62,162.59,8.8612]
[1717796430595,7.45,162.62,162.59,90.8612]
[1717796432212,7.44,162.62,162.59,90.8612]
[1717796433831,7.44,162.62,162.59,8.8612]
[1717796435637,5.57892087,162.66,162.61,6.4406]
[1717796435801,7.44,162.65,162.62,2.2751]
[1717796436002,7.44,162.64,162.62,2.2751]
[1717796436820,7.44,162.65,162.62,2.2751]
[1717796437831,7.44,162.65,162.61,8.7159]
[1717796438828,7.44,162.65,162.62,2.2752]
[1717796439609,7.44,162.64,162.62,2.2752]
[1717796440033,2.2745,162.67,162.62,2.2752]
[1717796440220,7.44,162.65,162.62,2.2752]
[1717796440611,47.2744,162.68,162.63,2.275]
[1717796440818,7.44,162.65,162.63,2.275]
[1717796441429,7.44,162.65,162.62,2.2751]
[1717796441938,2.2745,162.67,162.63,2.275]
[1717796442143,7.44,162.65,162.63,2.275]
[1717796443843,2.2745,162.67,162.62,2.2751]
[1717796444048,7.44,162.65,162.62,2.2751]
[1717796444219,7.44,162.65,162.62,8.6681]
[1717796444623,7.44,162.65,162.63,2.275]
[1717796445018,47.2744,162.68,162.63,2.275]
[1717796445225,7.44,162.65,162.63,2.275]
[1717796445742,47.2744,162.68,162.63,2.275]
[1717796446040,7.44,162.66,162.63,2.275]
[1717796447035,47.2744,162.68,162.63,8.5122]
[1717796447236,7.44,162.66,162.63,8.5122]
[1717796447539,7.44,162.68,162.65,2.2748]
[1717796447731,2.2742,162.7,162.65,2.2748]
[1717796447937,7.44,162.68,162.65,2.2748]
[1717796448138,7.44,162.67,162.65,2.2748]
[1717796448343,7.44,162.68,162.65,2.2748]
[1717796450161,7.0714,162.68,162.65,2.2748]
[1717796450369,2.2742,162.7,162.65,8.512]
[1717796450538,7.44,162.68,162.65,8.512]
[1717796454875,47.274,162.71,162.66,8.4823]
[1717796455189,7.44,162.7,162.67,2.2745]
[1717796456653,7.44,162.68,162.65,2.2747]
[1717796456983,256.1,162.72,162.65,16.2158]
[1717796456984,7.44,162.69,162.65,16.2158]
[1717796457169,7.44,162.69,162.66,8.4824]
[1717796457379,7.44,162.69,162.66,6.2078]
[1717796457569,7.44,162.69,162.66,8.4824]
[1717796457895,7.44,162.7,162.66,90.4824]
[1717796459569,7.44,162.7,162.67,8.4823]
[1717796461161,258.3738,162.72,162.67,8.4823]
[1717796461390,7.44,162.7,162.67,6.2078]
[1717796461873,7.44,162.7,162.67,8.4823]
[1717796462279,258.3739,162.72,162.67,8.4823]
[1717796462589,7.44,162.7,162.67,8.4823]
[1717796466296,7.44,162.7,162.67,90.4823]
[1717796470299,7.44,162.7,162.67,84.2745]
[1717796470504,258.3739,162.72,162.66,2.2746]
[1717796470505,7.44,162.69,162.66,2.2746]
[1717796472491,7.44,162.69,162.67,2.2745]
[1717796472698,7.44,162.7,162.67,2.2745]
[1717796476110,2.274,162.71,162.66,88.1802]
[1717796476310,7.44,162.7,162.66,88.1802]
[1717796476514,7.44,162.7,162.67,2.2745]
[1717796477187,2.2737,162.73,162.68,2.2743]
[1717796477386,7.44,162.71,162.68,2.2743]
[1717796478411,45.0,162.73,162.69,8.4544]
[1717796478610,7.44,162.72,162.69,8.4544]
[1717796479621,7.44,162.72,162.69,90.4544]
[1717796480293,5.41753188,162.74,162.7,2.274]
[1717796480497,7.44,162.73,162.69,90.4544]
[1717796480899,7.44,162.72,162.69,90.4544]
[1717796481622,7.69103188,162.74,162.69,90.4544]
[1717796481823,7.44,162.73,162.69,90.4544]
[1717796482414,7.44,162.73,162.69,8.4544]
[1717796483897,7.69103188,162.74,162.69,2.2742]
[1717796484232,7.44,162.71,162.69,2.2742]
[1717796484903,7.44,162.71,162.68,6.1802]
[1717796485312,7.44,162.71,162.68,88.1802]
[1717796486016,7.44,162.71,162.69,2.2742]
[1717796488307,7.44,162.72,162.69,2.2742]
[1717796491033,5.41753188,162.74,162.69,2.2742]
[1717796491207,7.44,162.72,162.69,2.2742]
[1717796491408,7.44,162.72,162.69,84.2742]
[1717796491729,7.44,162.72,162.7,2.274]
[1717796492832,7.44,162.73,162.7,2.274]
[1717796493123,5.41753188,162.74,162.7,8.3234]
[1717796493331,7.44,162.73,162.7,8.3234]
[1717796493931,2.2733,162.76,162.7,8.3234]
[1717796494131,7.44,162.73,162.71,2.2739]
[1717796494732,7.44,162.73,162.7,8.3234]
[1717796496734,7.44,162.73,162.71,2.2739]
[1717796496930,7.44,162.74,162.71,2.2739]
[1717796497233,7.44,162.74,162.71,8.4462]
[1717796497433,7.60307227,162.77,162.73,2.2736]
[1717796497814,7.44,162.77,162.73,2.2736]
[1717796502446,7.44,162.76,162.73,2.2736]
[1717796502620,7.44,162.76,162.73,8.4459]
[1717796502936,7.44,162.78,162.74,8.4458]
[1717796503237,7.44,162.78,162.75,2.2733]
[1717796503913,2.43557227,162.81,162.73,10.7196]
[1717796504143,7.44,162.79,162.76,2.2732]
[1717796507626,7.44,162.79,162.77,2.2731]
[1717796507943,7.44,162.79,162.76,2.2732]
[1717796512419,7.44,162.78,162.76,2.2732]
[1717796519332,2.2725,162.81,162.76,2.2732]
[1717796519532,7.44,162.79,162.76,2.2732]
[1717796520634,2.2725,162.81,162.76,2.2732]
[1717796520835,7.44,162.79,162.76,2.2732]
[1717796523055,7.44,162.79,162.75,6.5183]
[1717796523361,7.44,162.79,162.76,2.2731]
[1717796525240,7.44,162.79,162.77,2.2731]
[1717796525560,45.0,162.82,162.78,2.273]
[1717796525745,7.44,162.79,162.75,11.065]
[1717796526961,7.44,162.79,162.77,2.273]
[1717796527350,2.2724,162.82,162.77,2.273]
[1717796527662,47.2724,162.82,162.77,2.273]
[1717796527854,7.44,162.79,162.77,2.273]
[1717796529066,45.0,162.82,162.77,2.273]
[1717796529251,7.44,162.79,162.77,2.273]
[1717796529451,7.44,162.79,162.78,2.273]
[1717796529653,47.2723,162.83,162.78,2.273]
[1717796529853,7.44,162.79,162.78,2.273]
[1717796530564,7.44,162.79,162.77,2.273]
[1717796532149,47.2723,162.83,162.77,2.273]
[1717796532350,7.44,162.79,162.77,2.273]
[1717796533682,47.2723,162.83,162.77,2.273]
[1717796533854,7.44,162.79,162.78,2.273]
[1717796534779,7.44,162.8,162.78,2.273]
[1717796537586,7.44,162.8,162.77,2.273]
[1717796540000,7.44,162.8,162.78,2.2729]
[1717796540178,7.44,162.81,162.79,2.2728]
[1717796540598,7.44,162.81,162.78,2.2729]
[1717796540983,7.44,162.82,162.78,2.2729]
[1717796542893,7.44,162.8,162.77,2.273]
[1717796543108,2.2723,162.83,162.77,2.273]
[1717796543283,45.0,162.83,162.78,2.2729]
[1717796543478,7.44,162.81,162.79,8.93]
[1717796543680,19.98638352,162.89,162.83,2.2721]
[1717796543879,2.2712,162.91,162.81,15.9078]
[1717796544106,7.44,162.87,162.84,2.2721]
[1717796545990,2.2713,162.9,162.84,84.2721]
[1717796546213,7.44,162.87,162.84,84.2721]
[1717796548403,7.44,162.87,162.84,2.2721]
[1717796549296,7.44,162.87,162.84,8.4207]
[1717796550207,7.44,162.87,162.85,2.2719]
[1717796551302,2.2713,162.9,162.85,8.4205]
[1717796551609,7.44,162.88,162.85,8.4205]
[1717796552916,7.44,162.88,162.86,2.2718]
[1717796553118,45.0,162.91,162.86,8.3882]
[1717796553600,7.44,162.89,162.86,8.3882]
[1717796553785,7.44,162.89,162.85,2.2719]
[1717796553986,7.44,162.88,162.85,8.3883]
[1717796557192,7.44,162.88,162.85,2.2719]
[1717796557388,7.44,162.87,162.85,2.2719]
[1717796557604,7.44,162.87,162.84,8.3884]
[1717796558623,7.44,162.87,162.85,2.272]
[1717796561123,7.44,162.87,162.84,6.1164]
[1717796561496,7.44,162.87,162.85,2.2719]
[1717796562629,7.44,162.86,162.78,12.9352]
[1717796562925,7.44,162.84,162.83,2.2722]
[1717796563123,7.44,162.84,162.82,2.2723]
[1717796563424,7.44,162.83,162.82,2.2723]
[1717796563598,7.44,162.84,162.82,2.2723]
[1717796565128,7.44,162.83,162.81,2.2725]
[1717796566755,2.2718,162.87,162.81,2.2725]
[1717796567022,7.44,162.83,162.81,2.2725]
[1717796568009,7.44,162.83,162.82,2.2724]
[1717796568232,7.44,162.83,162.81,2.2725]
[1717796570137,7.44,162.83,162.82,2.2724]
[1717796570317,2.2717,162.87,162.82,2.2724]
[1717796570519,7.44,162.83,162.82,2.2724]
[1717796571401,7.44,162.83,162.81,2.2725]
[1717796572232,2.2718,162.86,162.81,2.2725]
[1717796572406,7.44,162.83,162.81,2.2725]
[1717796572724,45.0,162.88,162.77,6.2879]
[1717796572928,2.2712,162.91,162.86,2.2718]
[1717796573135,7.44,162.88,162.86,2.2718]
[1717796573708,7.44,162.88,162.85,2.2719]
[1717796573915,7.44,162.87,162.83,2.2722]
[1717796574119,7.44,162.86,162.83,2.2722]
[1717796574433,7.44,162.85,162.83,2.2722]
[1717796574914,7.44,162.85,162.84,2.2721]
[1717796575322,7.44,162.86,162.84,2.2721]
[1717796578441,2.2714,162.89,162.84,2.2721]
[1717796578442,2.2714,162.89,162.84,84.2721]
[1717796578642,7.44,162.87,162.85,2.2719]
[1717796581242,2.2713,162.9,162.85,2.2719]
[1717796581443,7.44,162.87,162.85,2.2719]
[1717796582125,7.44,162.87,162.84,2.2721]
[1717796582333,7.44,162.86,162.84,2.2721]
[1717796583131,2.2713,162.9,162.84,2.2721]
[1717796583317,7.44,162.86,162.84,2.2721]
[1717796584224,7.44,162.87,162.84,2.2721]
[1717796585425,7.44,162.87,162.84,84.2721]
[1717796585827,7.44,162.87,162.84,2.2721]
[1717796586743,7.44,162.86,162.84,2.2721]
[1717796587441,7.44,162.86,162.83,8.3285]